Workbook

Sheet BudgetWorksheet
A1: Hobson DHS UAK budget | L1: Updated: | M1: =TODAY() -> 2017-04-26
C2: DHS Year 3 | E2: DHS Year 4
A3: TOTAL | C3: =D113 -> 40000.0904 | E3: =F113 -> 117697.508 | G3: =H113 -> 0 | I3: =J113 -> 0 | K3: =L113 -> 0 | M3: =M113 -> 157697.5984
A4: SALARY/WAGES | C4: 1 | D4: Y1 | E4: =IF($C$4=1, "HOURS", "MONTHS") -> HOURS | F4: Y2 | G4: =IF($C$4=1, "HOURS", "MONTHS") -> HOURS | H4: Y3 | I4: =IF($C$4=1, "HOURS", "MONTHS") -> HOURS | J4: Y4 | K4: =IF($C$4=1, "HOURS", "MONTHS") -> HOURS | L4: Y5 | M4: Total
A6: ='Salary Worksheet'!B4 -> Brett Hobson | C6: 10 | D6: =IF($C$4=1,ROUND('Salary Worksheet'!D16*C6,2), ROUND('Salary Worksheet'!D4/12*C6,2)) -> 752.47 | E6: 40 | F6: =IF($C$4=1,ROUND('Salary Worksheet'!E16*E6,2), ROUND('Salary Worksheet'!E4/12*E6,2)) -> 3100 | G6: 0 | H6: =IF($C$4=1,ROUND('Salary Worksheet'!F16*G6,2), ROUND('Salary Worksheet'!F4/12*G6,0)) -> 0 | I6: 0 | J6: =IF($C$4=1,ROUND('Salary Worksheet'!G16*I6,2), ROUND('Salary Worksheet'!G4/12*I6,0)) -> 0 | K6: 0 | L6: =IF($C$4=1,ROUND('Salary Worksheet'!H16*K6,2), ROUND('Salary Worksheet'!H4/12*K6,0)) -> 0 | M6: =SUM(L6,J6,H6,F6,D6) -> 3852.47
C7: 0 | D7: =IF($C$4=1,ROUND('Salary Worksheet'!D17*C7,2), ROUND('Salary Worksheet'!D5/12*C7,2)) -> 0 | E7: 0 | F7: =IF($C$4=1,ROUND('Salary Worksheet'!E17*E7,2), ROUND('Salary Worksheet'!E5/12*E7,2)) -> 0 | G7: 0 | H7: =IF($C$4=1,ROUND('Salary Worksheet'!F17*G7,2), ROUND('Salary Worksheet'!F5/12*G7,0)) -> 0 | I7: 0 | J7: =IF($C$4=1,ROUND('Salary Worksheet'!G17*I7,2), ROUND('Salary Worksheet'!G5/12*I7,0)) -> 0 | K7: 0 | L7: =IF($C$4=1,ROUND('Salary Worksheet'!H17*K7,2), ROUND('Salary Worksheet'!H5/12*K7,0)) -> 0 | M7: =SUM(J7+H7+F7+D7+L7) -> 0
C8: 0 | D8: =IF($C$4=1,ROUND('Salary Worksheet'!D18*C8,2), ROUND('Salary Worksheet'!D6/12*C8,2)) -> 0 | E8: 0 | F8: =IF($C$4=1,ROUND('Salary Worksheet'!E18*E8,2), ROUND('Salary Worksheet'!E6/12*E8,2)) -> 0 | G8: 0 | H8: =IF($C$4=1,ROUND('Salary Worksheet'!F18*G8,2), ROUND('Salary Worksheet'!F6/12*G8,0)) -> 0 | I8: 0 | J8: =IF($C$4=1,ROUND('Salary Worksheet'!G18*I8,2), ROUND('Salary Worksheet'!G6/12*I8,0)) -> 0 | K8: 0 | L8: =IF($C$4=1,ROUND('Salary Worksheet'!H18*K8,2), ROUND('Salary Worksheet'!H6/12*K8,0)) -> 0 | M8: =SUM(J8+H8+F8+D8+L8) -> 0
A9: Subtotal Sr. Personnel Salary | D9: =SUM(D6:D8) -> 752.47 | F9: =SUM(F6:F8) -> 3100 | H9: =SUM(H6:H8) -> 0 | J9: =SUM(J6:J8) -> 0 | L9: =SUM(L6:L8) -> 0 | M9: =SUM(J9+H9+F9+D9+L9) -> 3852.47
A10: ='Salary Worksheet'!B7 -> Ben Rannan | C10: 54.15 | D10: =IF($C$4=1,ROUND('Salary Worksheet'!D19*C10,2), ROUND('Salary Worksheet'!D7/12*C10,0)) -> 2306.06 | E10: 90 | F10: =IF($C$4=1,ROUND('Salary Worksheet'!E19*E10,2), ROUND('Salary Worksheet'!E7/12*E10,2)) -> 3947.4 | G10: 0 | H10: =IF($C$4=1,ROUND('Salary Worksheet'!F19*G10,2), ROUND('Salary Worksheet'!F7/12*G10,2)) -> 0 | I10: 0 | J10: =IF($C$4=1,ROUND('Salary Worksheet'!G19*I10,2), ROUND('Salary Worksheet'!G7/12*I10,2)) -> 0 | K10: 0 | L10: =IF($C$4=1,ROUND('Salary Worksheet'!H19*K10,2), ROUND('Salary Worksheet'!H7/12*K10,2)) -> 0 | M10: =SUM(L10+J10+H10+F10+D10) -> 6253.46
A11: ='Salary Worksheet'!B8 -> Brian Kieft | C11: 0 | D11: =IF($C$4=1,ROUND('Salary Worksheet'!D20*C11,2), ROUND('Salary Worksheet'!D8/12*C11,0)) -> 0 | E11: 100 | F11: =IF($C$4=1,ROUND('Salary Worksheet'!E20*E11,2), ROUND('Salary Worksheet'!E8/12*E11,2)) -> 7726 | G11: 0 | H11: =IF($C$4=1,ROUND('Salary Worksheet'!F20*G11,2), ROUND('Salary Worksheet'!F8/12*G11,2)) -> 0 | I11: 0 | J11: =IF($C$4=1,ROUND('Salary Worksheet'!G20*I11,2), ROUND('Salary Worksheet'!G8/12*I11,2)) -> 0 | K11: 0 | L11: =IF($C$4=1,ROUND('Salary Worksheet'!H20*K11,2), ROUND('Salary Worksheet'!H8/12*K11,2)) -> 0 | M11: 7726
A12: ='Salary Worksheet'!B9 -> Mark Chaffey | C12: 70 | D12: =IF($C$4=1,ROUND('Salary Worksheet'!D21*C12,2), ROUND('Salary Worksheet'!D9/12*C12,0)) -> 6066.92 | E12: 100 | F12: =IF($C$4=1,ROUND('Salary Worksheet'!E21*E12,2), ROUND('Salary Worksheet'!E9/12*E12,2)) -> 8927 | G12: 0 | H12: =IF($C$4=1,ROUND('Salary Worksheet'!F21*G12,2), ROUND('Salary Worksheet'!F9/12*G12,2)) -> 0 | I12: 0 | J12: =IF($C$4=1,ROUND('Salary Worksheet'!G21*I12,2), ROUND('Salary Worksheet'!G9/12*I12,2)) -> 0 | K12: 0 | L12: =IF($C$4=1,ROUND('Salary Worksheet'!H21*K12,2), ROUND('Salary Worksheet'!H9/12*K12,2)) -> 0 | M12: 14993.92
A13: ='Salary Worksheet'!B10 -> Jon Erikson | C13: 70 | D13: =IF($C$4=1,ROUND('Salary Worksheet'!D22*C13,2), ROUND('Salary Worksheet'!D10/12*C13,0)) -> 5003.04 | E13: 65 | F13: =IF($C$4=1,ROUND('Salary Worksheet'!E22*E13,2), ROUND('Salary Worksheet'!E10/12*E13,2)) -> 4785.3 | G13: 0 | H13: =IF($C$4=1,ROUND('Salary Worksheet'!F22*G13,2), ROUND('Salary Worksheet'!F10/12*G13,2)) -> 0 | I13: 0 | J13: =IF($C$4=1,ROUND('Salary Worksheet'!G22*I13,2), ROUND('Salary Worksheet'!G10/12*I13,2)) -> 0 | K13: 0 | L13: =IF($C$4=1,ROUND('Salary Worksheet'!H22*K13,2), ROUND('Salary Worksheet'!H10/12*K13,2)) -> 0 | M13: 9788.34
A14: ='Salary Worksheet'!B11 -> Jim Schofield | C14: 0 | D14: =IF($C$4=1,ROUND('Salary Worksheet'!D23*C14,2), ROUND('Salary Worksheet'!D11/12*C14,0)) -> 0 | E14: 166 | F14: =IF($C$4=1,ROUND('Salary Worksheet'!E23*E14,2), ROUND('Salary Worksheet'!E11/12*E14,2)) -> 8341.5 | G14: 0 | H14: =IF($C$4=1,ROUND('Salary Worksheet'!F23*G14,2), ROUND('Salary Worksheet'!F11/12*G14,2)) -> 0 | I14: 0 | J14: =IF($C$4=1,ROUND('Salary Worksheet'!G23*I14,2), ROUND('Salary Worksheet'!G11/12*I14,2)) -> 0 | K14: 0 | L14: =IF($C$4=1,ROUND('Salary Worksheet'!H23*K14,2), ROUND('Salary Worksheet'!H11/12*K14,2)) -> 0 | M14: 8341.5
A15: ='Salary Worksheet'!B12 -> Paul Coenen | C15: 0 | D15: =IF($C$4=1,ROUND('Salary Worksheet'!D24*C15,2), ROUND('Salary Worksheet'!D12/12*C15,0)) -> 0 | E15: 200 | F15: =IF($C$4=1,ROUND('Salary Worksheet'!E24*E15,2), ROUND('Salary Worksheet'!E12/12*E15,2)) -> 9146 | G15: 0 | H15: =IF($C$4=1,ROUND('Salary Worksheet'!F24*G15,2), ROUND('Salary Worksheet'!F12/12*G15,2)) -> 0 | I15: 0 | J15: =IF($C$4=1,ROUND('Salary Worksheet'!G24*I15,2), ROUND('Salary Worksheet'!G12/12*I15,2)) -> 0 | K15: 0 | L15: =IF($C$4=1,ROUND('Salary Worksheet'!H24*K15,2), ROUND('Salary Worksheet'!H12/12*K15,2)) -> 0 | M15: 9146
A16: ='Salary Worksheet'!B13 -> Jose Rosal | C16: 20 | D16: =IF($C$4=1,ROUND('Salary Worksheet'!D25*C16,2), ROUND('Salary Worksheet'!D13/12*C16,0)) -> 1087.21 | E16: 60 | F16: =IF($C$4=1,ROUND('Salary Worksheet'!E25*E16,2), ROUND('Salary Worksheet'!E13/12*E16,2)) -> 3359.4 | G16: 0 | H16: =IF($C$4=1,ROUND('Salary Worksheet'!F25*G16,2), ROUND('Salary Worksheet'!F13/12*G16,2)) -> 0 | I16: 0 | J16: =IF($C$4=1,ROUND('Salary Worksheet'!G25*I16,2), ROUND('Salary Worksheet'!G13/12*I16,2)) -> 0 | K16: 0 | L16: =IF($C$4=1,ROUND('Salary Worksheet'!H25*K16,2), ROUND('Salary Worksheet'!H13/12*K16,2)) -> 0 | M16: 4446.61
A17: ='Salary Worksheet'!B14 -> Ray Thompson | C17: 30 | D17: =IF($C$4=1,ROUND('Salary Worksheet'!D26*C17,2), ROUND('Salary Worksheet'!D14/12*C17,0)) -> 1550.18 | E17: 0 | F17: =IF($C$4=1,ROUND('Salary Worksheet'!E26*E17,2), ROUND('Salary Worksheet'!E14/12*E17,2)) -> 0 | G17: 0 | H17: =IF($C$4=1,ROUND('Salary Worksheet'!F26*G17,2), ROUND('Salary Worksheet'!F14/12*G17,2)) -> 0 | I17: 0 | J17: =IF($C$4=1,ROUND('Salary Worksheet'!G26*I17,2), ROUND('Salary Worksheet'!G14/12*I17,2)) -> 0 | K17: 0 | L17: =IF($C$4=1,ROUND('Salary Worksheet'!H26*K17,2), ROUND('Salary Worksheet'!H14/12*K17,2)) -> 0 | M17: 1550.18
A18: Subtotal Other Employee Salary | C18: 0 | D18: =SUM(D10:D17) -> 16013.41 | E18: 0 | F18: =SUM(F10:F17) -> 46232.6 | G18: 0 | H18: =SUM(H10:H17) -> 0 | I18: 0 | J18: =SUM(J10:J17) -> 0 | K18: 0 | L18: =SUM(L10:L17) -> 0 | M18: =SUM(J18+H18+F18+D18+L18) -> 62246.01
A19: POSTDOCS, GSRs, PART-TIME, TEMPS | C19: 0 | E19: 0 | G19: 0 | I19: 0 | K19: 0
A20: To calculate labor costs for Postdocs and GSRs, enter months of effort below; salary will calculate automatically based on MBARI rates. | C20: 0 | E20: 0 | G20: 0 | I20: 0 | K20: 0
A21: PostDoc(s) | C21: 0 | D21: =IF($C$4=1,ROUND('Salary Worksheet'!D29*C21,2), ROUND('Salary Worksheet'!D28/12*C21,0)) -> 0 | E21: 0 | F21: =IF($C$4=1,ROUND('Salary Worksheet'!E29*E21,2), ROUND('Salary Worksheet'!E28/12*E21,0)) -> 0 | G21: 0 | H21: =IF($C$4=1,ROUND('Salary Worksheet'!F29*G21,2), ROUND('Salary Worksheet'!F28/12*G21,0)) -> 0 | I21: 0 | J21: =IF($C$4=1,ROUND('Salary Worksheet'!G29*I21,2), ROUND('Salary Worksheet'!G28/12*I21,0)) -> 0 | K21: 0 | L21: =IF($C$4=1,ROUND('Salary Worksheet'!H29*K21,2), ROUND('Salary Worksheet'!H28/12*K21,0)) -> 0 | M21: =SUM(J21+H21+F21+D21+L21) -> 0
A22: Graduate Student(s) (GSRs) | C22: 0 | D22: =IF($C$4=1,ROUND('Salary Worksheet'!D31*C22,2), ROUND('Salary Worksheet'!D30/12*C22,0)) -> 0 | E22: 0 | F22: =IF($C$4=1,ROUND('Salary Worksheet'!E31*E22,2), ROUND('Salary Worksheet'!E30/12*E22,0)) -> 0 | G22: 0 | H22: =IF($C$4=1,ROUND('Salary Worksheet'!F31*G22,2), ROUND('Salary Worksheet'!F30/12*G22,0)) -> 0 | I22: 0 | J22: =IF($C$4=1,ROUND('Salary Worksheet'!G31*I22,2), ROUND('Salary Worksheet'!G30/12*I22,0)) -> 0 | K22: 0 | L22: =IF($C$4=1,ROUND('Salary Worksheet'!H31*K22,2), ROUND('Salary Worksheet'!H30/12*K22,0)) -> 0 | M22: 0
A23: NA PT (30-39 hrs) | C23: 0 | D23: =IF($C$4=1,ROUND('Salary Worksheet'!E44*C23,2), ROUND('Salary Worksheet'!E37/12*C23,0)) -> 0 | E23: 0 | F23: =IF($C$4=1,ROUND('Salary Worksheet'!F44*E23,2), ROUND('Salary Worksheet'!F37/12*E23,0)) -> 0 | G23: 0 | H23: =IF($C$4=1,ROUND('Salary Worksheet'!G44*G23,2), ROUND('Salary Worksheet'!G37/12*G23,0)) -> 0 | I23: 0 | J23: =IF($C$4=1,ROUND('Salary Worksheet'!H44*I23,2), ROUND('Salary Worksheet'!H37/12*I23,0)) -> 0 | K23: 0 | L23: =IF($C$4=1,ROUND('Salary Worksheet'!I44*K23,2), ROUND('Salary Worksheet'!I37/12*K23,0)) -> 0 | M23: 0
A24: NA PT (30-39 hrs) | C24: 0 | D24: =IF($C$4=1,ROUND('Salary Worksheet'!E45*C24,2), ROUND('Salary Worksheet'!E38/12*C24,0)) -> 0 | E24: 0 | F24: =IF($C$4=1,ROUND('Salary Worksheet'!F45*E24,2), ROUND('Salary Worksheet'!F38/12*E24,0)) -> 0 | G24: 0 | H24: =IF($C$4=1,ROUND('Salary Worksheet'!G45*G24,2), ROUND('Salary Worksheet'!G38/12*G24,0)) -> 0 | I24: 0 | J24: =IF($C$4=1,ROUND('Salary Worksheet'!H45*I24,2), ROUND('Salary Worksheet'!H38/12*I24,0)) -> 0 | K24: 0 | L24: =IF($C$4=1,ROUND('Salary Worksheet'!I45*K24,2), ROUND('Salary Worksheet'!I38/12*K24,0)) -> 0 | M24: =SUM(J24+H24+F24+D24+L24) -> 0
A25: Part-time (<= 29 hrs/wk) 1 | C25: 0 | D25: =IF($C$4=1,ROUND('Salary Worksheet'!E46*C25,2), ROUND('Salary Worksheet'!E39/12*C25,0)) -> 0 | E25: 0 | F25: =IF($C$4=1,ROUND('Salary Worksheet'!F46*E25,2), ROUND('Salary Worksheet'!F39/12*E25,0)) -> 0 | G25: 0 | H25: =IF($C$4=1,ROUND('Salary Worksheet'!G46*G25,2), ROUND('Salary Worksheet'!G39/12*G25,0)) -> 0 | I25: 0 | J25: =IF($C$4=1,ROUND('Salary Worksheet'!H46*I25,2), ROUND('Salary Worksheet'!H39/12*I25,0)) -> 0 | K25: 0 | L25: =IF($C$4=1,ROUND('Salary Worksheet'!I46*K25,2), ROUND('Salary Worksheet'!I39/12*K25,0)) -> 0 | M25: 0
A26: Part-time (<= 29 hrs/wk) 2 | C26: 0 | D26: =IF($C$4=1,ROUND('Salary Worksheet'!E47*C26,2), ROUND('Salary Worksheet'!E40/12*C26,0)) -> 0 | E26: 0 | F26: =IF($C$4=1,ROUND('Salary Worksheet'!F47*E26,2), ROUND('Salary Worksheet'!F40/12*E26,0)) -> 0 | G26: 0 | H26: =IF($C$4=1,ROUND('Salary Worksheet'!G47*G26,2), ROUND('Salary Worksheet'!G40/12*G26,0)) -> 0 | I26: 0 | J26: =IF($C$4=1,ROUND('Salary Worksheet'!H47*I26,2), ROUND('Salary Worksheet'!H40/12*I26,0)) -> 0 | K26: 0 | L26: =IF($C$4=1,ROUND('Salary Worksheet'!I47*K26,2), ROUND('Salary Worksheet'!I40/12*K26,0)) -> 0 | M26: =SUM(J26+H26+F26+D26+L26) -> 0
A27: Temporary Employee 1 | C27: 0 | D27: =IF($C$4=1,ROUND('Salary Worksheet'!E48*C27,2), ROUND('Salary Worksheet'!E41/12*C27,0)) -> 0 | E27: 0 | F27: =IF($C$4=1,ROUND('Salary Worksheet'!F48*E27,2), ROUND('Salary Worksheet'!F41/12*E27,0)) -> 0 | G27: 0 | H27: =IF($C$4=1,ROUND('Salary Worksheet'!G48*G27,2), ROUND('Salary Worksheet'!G41/12*G27,0)) -> 0 | I27: 0 | J27: =IF($C$4=1,ROUND('Salary Worksheet'!H48*I27,2), ROUND('Salary Worksheet'!H41/12*I27,0)) -> 0 | K27: 0 | L27: =IF($C$4=1,ROUND('Salary Worksheet'!I48*K27,2), ROUND('Salary Worksheet'!I41/12*K27,0)) -> 0 | M27: 0
A28: Temporary Employee 2 | C28: 0 | D28: =IF($C$4=1,ROUND('Salary Worksheet'!E49*C28,2), ROUND('Salary Worksheet'!E42/12*C28,0)) -> 0 | E28: 0 | F28: =IF($C$4=1,ROUND('Salary Worksheet'!F49*E28,2), ROUND('Salary Worksheet'!F42/12*E28,0)) -> 0 | G28: 0 | H28: =IF($C$4=1,ROUND('Salary Worksheet'!G49*G28,2), ROUND('Salary Worksheet'!G42/12*G28,0)) -> 0 | I28: 0 | J28: =IF($C$4=1,ROUND('Salary Worksheet'!H49*I28,2), ROUND('Salary Worksheet'!H42/12*I28,0)) -> 0 | K28: 0 | L28: =IF($C$4=1,ROUND('Salary Worksheet'!I49*K28,2), ROUND('Salary Worksheet'!I42/12*K28,0)) -> 0 | M28: =SUM(J28+H28+F28+D28+L28) -> 0
A29: Subtotal Other Personnel Salary | D29: =SUM(D18:D27) -> 16013.41 | F29: =SUM(F18:F27) -> 46232.6 | H29: =SUM(H18:H27) -> 0 | J29: =SUM(J18:J27) -> 0 | L29: =SUM(L18:L27) -> 0 | M29: 62246.01
A30: Total Salary & Wages | D30: =SUM(D29+D9) -> 16765.88 | F30: =SUM(F29+F9) -> 49332.6 | H30: =SUM(H29+H9) -> 0 | J30: =SUM(J29+J9) -> 0 | L30: =SUM(L29+L9) -> 0 | M30: 66098.48
A31: FRINGE BENEFITS
A32: Full-time (Regular) | B32: 0.58 | D32: =((D9+D18)*$B$32) -> 9724.2104 | F32: =((F9+F18)*$B$32) -> 28612.908 | H32: =((H9+H18)*$B$32) -> 0 | J32: =((J9+J18)*$B$32) -> 0 | L32: =((L9+L18)*$B$32) -> 0 | M32: =SUM(J32+H32+F32+D32+L32) -> 38337.1184
A33: PostDoc | B33: 0.49 | D33: =D21*$B$33 -> 0 | F33: =F21*$B$33 -> 0 | H33: =H21*$B$33 -> 0 | J33: =J21*$B$33 -> 0 | L33: =L21*$B$33 -> 0 | M33: 0
A34: PT (30-39 hrs) | B34: 0.58 | D34: =(SUM(D23:D24))*$B$34 -> 0 | F34: =(SUM(F23:F24)*$B$34) -> 0 | H34: =(SUM(H23:H24)*$B$34) -> 0 | J34: =(SUM(J23:J24)*$B$34) -> 0 | L34: =(SUM(L23:L24)*$B$34) -> 0 | M34: 0
A35: GSRs + PT (20-29 hrs) | B35: 0.32 | D35: =(SUM(D22,D25,D26))*$B$35 -> 0 | F35: =(SUM(F22,F25,F26))*$B$35 -> 0 | H35: =(SUM(H22,H25,H26))*$B$35 -> 0 | J35: =(SUM(J22,J25,J26))*$B$35 -> 0 | L35: =(SUM(L22,L25,L26))*$B$35 -> 0 | M35: 0
A36: Temp | B36: 0.1 | D36: =(D27+D28)*$B$36 -> 0 | F36: =(F27+F28)*$B$36 -> 0 | H36: =(H27+H28)*$B$36 -> 0 | J36: =(J27+J28)*$B$36 -> 0 | L36: =(L27+L28)*$B$36 -> 0 | M36: 0
A37: Total Fringe Benefits | D37: =SUM(D32:D36) -> 9724.2104 | F37: =SUM(F32:F36) -> 28612.908 | H37: =SUM(H32:H36) -> 0 | J37: =SUM(J32:J36) -> 0 | L37: =SUM(L32:L36) -> 0 | M37: 38337.1184
A38: Total Salary & Benefits | D38: =SUM(D37,D30) -> 26490.0904 | F38: =SUM(F37,F30) -> 77945.508 | H38: =SUM(H37,H30) -> 0 | J38: =SUM(J37,J30) -> 0 | L38: =SUM(L37,L30) -> 0 | M38: 104435.5984
A39: CAPITAL EQUIPMENT (items >$5K)
A40: Item 1 | M40: =SUM(J40+H40+F40+D40+L40) -> 0
A41: Item 2 | M41: =SUM(J41+H41+F41+D41+L41) -> 0
A42: Item 3 | M42: 0
A43: Item 4 | M43: 0
A44: Item 5 | M44: 0
A45: Item 6 | M45: 0
A46: Item 7 | M46: 0
A47: Item 8 | M47: 0
A48: Item 9 | M48: 0
A49: Item 10 | M49: 0
A50: Total Equipment | D50: =SUM(D40:D49) -> 0 | F50: =SUM(F40:F49) -> 0 | H50: =SUM(H40:H49) -> 0 | J50: =SUM(J40:J49) -> 0 | L50: =SUM(L40:L49) -> 0 | M50: =SUM(L50,J50,H50,F50,D50) -> 0
A51: TRAVEL
A52: Travel - Domestic | M52: =SUM(L52,J52,H52,F52,D52) -> 0
A53: Travel - Foreign | M53: =SUM(L53,J53,H53,F53,D53) -> 0
A54: Total Travel | D54: =SUM(D52:D53) -> 0 | F54: =SUM(F52:F53) -> 0 | H54: =SUM(H52:H53) -> 0 | J54: =SUM(J52:J53) -> 0 | L54: =SUM(L52:L53) -> 0 | M54: =SUM(L54,J54,H54,F54,D54) -> 0
A55: PARTICIPANT SUPPORT
A56: Stipends | M56: =SUM(L56,J56,H56,F56,D56) -> 0
A57: Travel | M57: =SUM(L57,J57,H57,F57,D57) -> 0
A58: Subsistence | M58: =SUM(L58,J58,H58,F58,D58) -> 0
A59: Other | M59: =SUM(L59,J59,H59,F59,D59) -> 0
A60: Total Participant Support | D60: =SUM(D56:D59) -> 0 | F60: =SUM(F56:F59) -> 0 | H60: =SUM(H56:H59) -> 0 | J60: =SUM(J56:J59) -> 0 | L60: =SUM(L56:L59) -> 0 | M60: =SUM(L60,J60,H60,F60,D60) -> 0
A61: MATERIALS & SUPPLIES
A62: Item 1 | M62: =SUM(L62,J62,H62,F62,D62) -> 0
A63: Item 2 | M63: =SUM(L63,J63,H63,F63,D63) -> 0
A64: Item 3 | M64: 0
A65: Item 4 | M65: 0
A66: Item 5 | M66: 0
A67: Item 6 | M67: 0
A68: Item 7 | M68: 0
A69: Item 8 | M69: 0
A70: Item 9 | M70: 0
A71: Item 10 | M71: 0
A72: Total Materials & Supplies | D72: =SUM(D62:D71) -> 0 | F72: =SUM(F62:F71) -> 0 | H72: =SUM(H62:H71) -> 0 | J72: =SUM(J62:J71) -> 0 | L72: =SUM(L62:L71) -> 0 | M72: =SUM(L72,J72,H72,F72,D72) -> 0
A73: PUBLICATIONS/DOCUMENTATION
M74: =SUM(L74,J74,H74,F74,D74) -> 0
M75: =SUM(L75,J75,H75,F75,D75) -> 0
A76: Total Publications | D76: =SUM(D74) -> 0 | F76: =SUM(F74) -> 0 | H76: =SUM(H74:H74) -> 0 | J76: =SUM(J74:J74) -> 0 | L76: =SUM(L74:L74) -> 0 | M76: =SUM(L76,J76,H76,F76,D76) -> 0
A77: OUTSIDE SERVICES
A78: Item 1 | M78: =SUM(L78,J78,H78,F78,D78) -> 0
A79: Item 2 | M79: =SUM(L79,J79,H79,F79,D79) -> 0
A80: Item 3 | M80: =SUM(L80,J80,H80,F80,D80) -> 0
A81: Total Outside Services | D81: =SUM(D78:D79) -> 0 | F81: =SUM(F78:F79) -> 0 | H81: =SUM(H78:H79) -> 0 | J81: =SUM(J78:J79) -> 0 | L81: =SUM(L78:L79) -> 0 | M81: =SUM(L81,J81,H81,F81,D81) -> 0
A82: SUBAWARDS
A83: Subaward 1 | M83: =SUM(L83,J83,H83,F83,D83) -> 0
A84: Subaward 2 | M84: =SUM(L84,J84,H84,F84,D84) -> 0
A85: Subaward 3 | M85: =SUM(L85,J85,H85,F85,D85) -> 0
A86: Subaward 4 | M86: 0
A87: Subaward 5 | M87: 0
A88: Subaward 6 | M88: 0
A89: Subaward 7 | M89: 0
A90: Subaward 8 | M90: 0
A91: Subaward 9 | M91: 0
A92: Subaward 10 | M92: 0
A93: Total Subawards | D93: =SUM(D83:D92) -> 0 | F93: =SUM(F83:F92) -> 0 | H93: =SUM(H83:H92) -> 0 | J93: =SUM(J83:J92) -> 0 | L93: =SUM(L83:L92) -> 0 | M93: =SUM(L93,J93,H93,F93,D93) -> 0
A94: Subawards subject to OH | D94: ='Subaward Worksheet'!B35 -> 0 | F94: ='Subaward Worksheet'!C35 -> 0 | H94: ='Subaward Worksheet'!D35 -> 0 | J94: ='Subaward Worksheet'!E35 -> 0 | L94: ='Subaward Worksheet'!F35 -> 0
A95: OH on Subawards | D95: ='Subaward Worksheet'!$B$36 -> 0 | F95: ='Subaward Worksheet'!$C$36 -> 0 | H95: ='Subaward Worksheet'!$D$36 -> 0 | J95: ='Subaward Worksheet'!$E$36 -> 0 | L95: ='Subaward Worksheet'!$F$36 -> 0 | M95: =SUM(L95,J95,H95,F95,D95) -> 0
A96: SHIP TIME | B96: Rate | C96: # Days | E96: # Days | G96: # Days | I96: # Days | K96: # Days
A97: none | B97: =INDEX('Ship rates'!A1:B9, MATCH(A97, ShipRates,0 ), 2) -> 0 | C97: 0 | D97: =B97*C97 -> 0 | F97: =29500*E97 -> 0 | H97: =29500*G97 -> 0 | J97: =29500*I97 -> 0 | L97: =29500*K97 -> 0 | M97: =SUM(L97,J97,H97,F97,D97) -> 0
A98: none | B98: =INDEX('Ship rates'!A1:B9, MATCH(A98, ShipRates,0 ), 2) -> 0 | C98: 0 | D98: =B98*C98 -> 0 | F98: =16900*E98 -> 0 | H98: =16900*G98 -> 0 | J98: =16900*I98 -> 0 | L98: =16900*K98 -> 0 | M98: =SUM(L98,J98,H98,F98,D98) -> 0
C99: 0 | D99: =B99*C99 -> 0 | F99: =B99*E99 -> 0 | H99: =B99*G99 -> 0 | J99: =B99*I99 -> 0 | L99: =B99*K99 -> 0 | M99: =SUM(L99,J99,H99,F99,D99) -> 0
D100: =B100*C100 -> 0 | F100: =B100*E100 -> 0 | H100: =B100*G100 -> 0 | J100: =B100*I100 -> 0 | L100: =B100*K100 -> 0 | M100: =SUM(L100,J100,H100,F100,D100) -> 0
A101: Total Ship Time | D101: =SUM(D97:D100) -> 0 | F101: =SUM(F97:F99) -> 0 | H101: =SUM(H97:H99) -> 0 | J101: =SUM(J97:J99) -> 0 | L101: =SUM(L97:L99) -> 0 | M101: =SUM(L101,J101,H101,F101,D101) -> 0
A102: TUITION/FEES | C102: Qtrs. | E102: Qtrs. | G102: Qtrs. | I102: Qtrs. | K102: Qtrs.
A103: UCSC Grad Student | C103: 0 | D103: =(C103*'Salary Worksheet'!D32) -> 0 | E103: 0 | F103: =(E103*'Salary Worksheet'!E32) -> 0 | G103: 0 | H103: =(G103*'Salary Worksheet'!F32) -> 0 | I103: 0 | J103: =(I103*'Salary Worksheet'!G32) -> 0 | K103: 0 | L103: =(K103*'Salary Worksheet'!H32) -> 0 | M103: =SUM(L103,J103,H103,F103,D103) -> 0
A104: UCSC Grad Student - Nonres. | C104: 0 | D104: =(C104*'Salary Worksheet'!D33) -> 0 | E104: 0 | F104: =(E104*'Salary Worksheet'!E33) -> 0 | G104: 0 | H104: =(G104*'Salary Worksheet'!F33) -> 0 | I104: 0 | J104: =(I104*'Salary Worksheet'!G33) -> 0 | K104: 0 | L104: =(K104*'Salary Worksheet'!H33) -> 0 | M104: =SUM(L104,J104,H104,F104,D104) -> 0
A105: Total Tuition/Fees | D105: =SUM(D103:D104) -> 0 | F105: =SUM(F103:F104) -> 0 | H105: =SUM(H103:H104) -> 0 | J105: =SUM(J103:J104) -> 0 | L105: =SUM(L103:L104) -> 0 | M105: =SUM(L105,J105,H105,F105,D105) -> 0
A106: SHIPPING
M107: =SUM(L107,J107,H107,F107,D107) -> 0
A108: Total Shipping | D108: =SUM(D107) -> 0 | F108: =SUM(F107) -> 0 | H108: =SUM(H107:H107) -> 0 | J108: =SUM(J107:J107) -> 0 | L108: =SUM(L107:L107) -> 0 | M108: 0
A110: TOTAL DIRECT COSTS | D110: =SUM(D108,D105,D101,D93,D81,D76,D72,D60,D54,D50,D38) -> 26490.0904 | F110: =SUM(F108,F105,F101,F93,F81,F76,F72,F60,F54,F50,F38) -> 77945.508 | H110: =SUM(H108,H105,H101,H93,H81,H76,H72,H60,H54,H50,H38) -> 0 | J110: =SUM(J108,J105,J101,J93,J81,J76,J72,J60,J54,J50,J38) -> 0 | L110: =SUM(L108,L105,L101,L93,L81,L76,L72,L60,L54,L50,L38) -> 0 | M110: 104435.5984
A111: MODIFIED TOTAL DIRECT COST BASE | D111: =D110-D98-D97-D93+D94-D60-D50 -> 26490.0904 | F111: =F110-F98-F97-F93+F94-F60-F50 -> 77945.508 | H111: =H110-H98-H97-H93+H94-H60-H50 -> 0 | J111: =J110-J98-J97-J93+J94-J60-J50 -> 0 | L111: =L110-L98-L97-L93+L94-L60-L50 -> 0 | M111: 104435.5984
A112: TOTAL INDIRECT COSTS | C112: 0.51 | D112: =ROUND(D111*$C$112,0) -> 13510 | F112: =ROUND(F111*$C$112,0) -> 39752 | H112: =ROUND(H111*$C$112,0) -> 0 | J112: 0 | L112: 0 | M112: 53262
A113: TOTAL DIRECT & INDIRECT COSTS | D113: =+D112+D110 -> 40000.0904 | F113: =+F112+F110 -> 117697.508 | H113: =+H112+H110 -> 0 | J113: =+J112+J110 -> 0 | L113: =+L112+L110 -> 0 | M113: 157697.5984

Sheet Salary Worksheet
A1: SALARY WORKSHEET
B2: Salary Increase Rate: | C2: 0.03 | G2: CONFIDENTIAL INFORMATION
C3: ANNUAL SALARY | D3: YR-1 | E3: YR-2 | F3: YR-3 | G3: YR-4 | H3: YR-5
B4: Brett Hobson | C4: =75.2465*2080 -> 156512.72 | D4: =C4 -> 156512.72 | E4: =ROUND(D4*($C$2+1),0) -> 161208 | F4: =ROUND(E4*($C$2+1),0) -> 166044 | G4: =ROUND(F4*($C$2+1),0) -> 171025 | H4: =ROUND(G4*($C$2+1),0) -> 176156
C5: 0 | D5: =C5 -> 0 | E5: =ROUND(D5*(C2+1),0) -> 0 | F5: =ROUND(E5*($C$2+1),0) -> 0 | G5: 0 | H5: 0
C6: 0 | D6: =C6 -> 0 | E6: =ROUND(D6*(C2+1),0) -> 0 | F6: 0 | G6: 0 | H6: 0
B7: Ben Rannan | C7: =42.5865*2080 -> 88579.92 | D7: 88579.92 | E7: =ROUND(D7*(C2+1),0) -> 91237 | F7: 93974 | G7: 96793 | H7: 99697
B8: Brian Kieft | C8: =75.011*2080 -> 156022.88 | D8: 156022.88 | E8: =ROUND(D8*(C2+1),0) -> 160704 | F8: 165525 | G8: 170491 | H8: 175606
B9: Mark Chaffey | C9: =86.6703*2080 -> 180274.224 | D9: 180274.224 | E9: =ROUND(D9*(C2+1),0) -> 185682 | F9: 191252 | G9: 196990 | H9: 202900
B10: Jon Erikson | C10: =71.472*2080 -> 148661.76 | D10: 148661.76 | E10: =ROUND(D10*(C2+1),0) -> 153122 | F10: 157716 | G10: 162447 | H10: 167320
B11: Jim Schofield | C11: =48.79*2080 -> 101483.2 | D11: 101483.2 | E11: =D11*1.03 -> 104527.696 | F11: 107664 | G11: 110894 | H11: 114221
B12: Paul Coenen | C12: =44.4009*2080 -> 92353.872 | D12: =C12 -> 92353.872 | E12: =D12*1.03 -> 95124.48816 | F12: =ROUND(E12*($C$2+1),0) -> 97978 | G12: =ROUND(F12*($C$2+1),0) -> 100917 | H12: =ROUND(G12*($C$2+1),0) -> 103945
B13: Jose Rosal | C13: =54.3607*2080 -> 113070.256 | D13: =C13 -> 113070.256 | E13: =1.03*D13 -> 116462.3637 | F13: =ROUND(E13*($C$2+1),0) -> 119956 | G13: =ROUND(F13*($C$2+1),0) -> 123555 | H13: =ROUND(G13*($C$2+1),0) -> 127262
B14: Ray Thompson | C14: =51.6728*2080 -> 107479.424 | D14: 107479.424 | E14: =D14*1.03 -> 110703.8067 | F14: 114025 | G14: 117446 | H14: 120969
C15: HOURLY RATE | D15: YR-1 | E15: YR-2 | F15: YR-3 | G15: YR-4 | H15: YR-5
B16: Brett Hobson | C16: 75.2465 | D16: =C16 -> 75.2465 | E16: =ROUND(D16*1.03, 2) -> 77.5 | F16: =ROUND(E16*1.03, 2) -> 79.83 | G16: 82.22 | H16: 84.69
C17: 0 | D17: =C17 -> 0 | E17: =ROUND(D17*1.03, 2) -> 0 | F17: 0 | G17: 0 | H17: 0
C18: 0 | D18: 0 | E18: 0 | F18: 0 | G18: 0 | H18: 0
B19: Ben Rannan | C19: 42.5865 | D19: 42.5865 | E19: 43.86 | F19: 45.18 | G19: 46.54 | H19: 47.94
B20: Brian Kieft | C20: 75.011 | D20: 75.011 | E20: 77.26 | F20: 79.58 | G20: 81.97 | H20: 84.43
B21: Mark Chaffey | C21: 86.6703 | D21: =C21 -> 86.6703 | E21: =ROUND(D21*1.03, 2) -> 89.27 | F21: =ROUND(E21*1.03, 2) -> 91.95 | G21: =ROUND(F21*1.03, 2) -> 94.71 | H21: =ROUND(G21*1.03, 2) -> 97.55
B22: Jon Erikson | C22: 71.472 | D22: 71.472 | E22: 73.62 | F22: 75.83 | G22: 78.1 | H22: 80.44
B23: Jim Schofield | C23: 48.79 | D23: 48.79 | E23: 50.25 | F23: 51.76 | G23: 53.31 | H23: 54.91
B24: Paul Coenen | C24: 44.4009 | D24: 44.4009 | E24: 45.73 | F24: 47.1 | G24: 48.51 | H24: 49.97
B25: Jose Rosal | C25: 54.3607 | D25: 54.3607 | E25: 55.99 | F25: 57.67 | G25: 59.4 | H25: 61.18
B26: Ray Thompson | C26: 51.6728 | D26: 51.6728 | E26: 53.22 | F26: 54.82 | G26: 56.46 | H26: 58.15
A27: Postdoc salaries and grad student salaries and tuition are set by MBARI and UCSC policies. The cells below are locked and you do not need to enter any information here. Calculate postdoc and grad student salaries and tuition by entering months of effort/academic quarters in the corresponding cells in the Budget Worksheet.
B28: Postdocs | D28: 55000 | E28: 57000 | F28: 59000 | G28: =F28*1.03 -> 60770 | H28: =G28*1.03 -> 62593.1
C29: Postdoc (Hourly) | D29: =D28/1920 -> 28.64583333 | E29: =E28/1920 -> 29.6875 | F29: 30.72916667 | G29: 31.65104167 | H29: 32.60057292
B30: Graduate Students | D30: 27950 | E30: 27950 | F30: 27950 | G30: 31200 | H30: 31200
C31: Grad Student (Hourly) | D31: 21.5 | E31: 21.5 | F31: 21.5 | G31: 24 | H31: 24
A32: UCSC Resident Tuition (per quarter) | D32: 5916.86 | E32: =D32*1.07 -> 6331.0402 | F32: =E32*1.07 -> 6774.213014 | G32: 7248.407925 | H32: 7755.79648
A33: UCSC Non-Res Tuition (per quarter) | D33: 15102 | E33: 16159.14 | F33: 17290.2798 | G33: 18500.59939 | H33: 19795.64134
A35: PART-TIME & TEMP EMPLOYEES
A36: ANNUAL | C36: Hourly Rate | D36: Hrs/Wk | E36: ANNUAL SALARY | F36: YR-2 | G36: YR-3 | H36: YR-4 | I36: YR-5
B37: PT (30-39 hrs) 1 | C37: 0 | E37: =ROUND(C37*40*52,0) -> 0 | F37: =ROUND(E37*(1+$C$2),0) -> 0 | G37: 0 | H37: 0 | I37: =ROUND(H37*($C$2+1),0) -> 0
B38: PT (30-39 hrs) 2 | C38: 0 | E38: =ROUND(C38*40*52,0) -> 0 | F38: 0 | G38: 0 | H38: 0 | I38: =ROUND(H38*($C$2+1),0) -> 0
B39: PT (≤29 hrs) 1 | C39: 0 | E39: =ROUND(C39*40*52,0) -> 0 | F39: 0 | G39: 0 | H39: 0 | I39: 0
B40: PT (≤29 hrs) 2 | C40: 0 | E40: 0 | F40: 0 | G40: 0 | H40: 0 | I40: 0
B41: Temp 1 | C41: 0 | E41: 0 | F41: 0 | G41: 0 | H41: 0 | I41: 0
B42: Temp 2 | C42: 0 | E42: 0 | F42: =ROUND(E42*(1+$C$2),0) -> 0 | G42: =ROUND(F42*(1+$C$2),0) -> 0 | H42: =ROUND(G42*(1+$C$2),0) -> 0 | I42: =ROUND(H42*($C$2+1),0) -> 0
A43: HOURLY | C43: Hourly Rate | E43: Y1 | F43: YR-2 | G43: YR-3 | H43: YR-4 | I43: YR-5
B44: PT (30-39 hrs) 1 | C44: =C37 -> 0 | E44: =C37 -> 0 | F44: =E44*(1+$C$2) -> 0 | G44: =F44*(1+$C$2) -> 0 | H44: 0 | I44: 0
B45: PT (30-39 hrs) 2 | C45: 0 | E45: 0 | F45: =E45*(1+$C$2) -> 0 | G45: 0 | H45: 0 | I45: 0
B46: PT (≤29 hrs) 1 | C46: 0 | E46: 0 | F46: 0 | G46: 0 | H46: 0 | I46: 0
B47: PT (≤29 hrs) 2 | C47: 0 | E47: 0 | F47: 0 | G47: 0 | H47: 0 | I47: 0
B48: Temporary Employee 1 | C48: 0 | E48: 0 | F48: 0 | G48: 0 | H48: 0 | I48: 0
B49: Temporary Employee 2 | C49: 0 | E49: 0 | F49: =E49*(1+$C$2) -> 0 | G49: =F49*(1+$C$2) -> 0 | H49: =G49*(1+$C$2) -> 0 | I49: =H49*(1+$C$2) -> 0
A50: SALARY CALCULATOR
A51: Hours | B51: Hours | D51: Hourly rate: | E51: 0 | F51: Annual Salary: | G51: =ROUND(E51*40*52,0) -> 0
A52: Months | B52: Months | D52: Monthly rate: | E52: 0 | F52: Annual Salary: | G52: =ROUND(E52*12,0) -> 0
D53: Annual Salary | E53: 0 | F53: Hourly rate: | G53: =ROUND(E53/2080,2) -> 0

Sheet Subaward Worksheet
A1: SUBAWARD WORKSHEET
A2: Note: This worksheet calculates subaward overhead and is populated automatically. Enter subaward amounts in the main Budget Worksheet.
B3: Y1 | C3: Y2 | D3: Y3 | E3: Y4 | F3: Y5 | G3: Y1-5
A4: =BudgetWorksheet!$A$83 -> Subaward 1 | B4: =BudgetWorksheet!$D$83 -> 0 | C4: =BudgetWorksheet!$F$83 -> 0 | D4: =BudgetWorksheet!$H$83 -> 0 | E4: =BudgetWorksheet!$J$83 -> 0 | F4: =BudgetWorksheet!$L$83 -> 0 | G4: =SUM(B4:F4) -> 0
A5: Subject to OH | B5: =IF(B4>25000, 25000, B4) -> 0 | C5: =IF(B4+C4>25000, 25000-B5, C4) -> 0 | D5: =IF(B4+C4+D4>25000, 25000-(B5+C5), D4) -> 0 | E5: =IF(B4+C4+D4+E4>25000, 25000-(B5+C5+D5), E4) -> 0 | F5: =IF(B4+C4+D4+E4+F4>25000, 25000-(B5+C5+D5+E5), F4) -> 0 | G5: =SUM(B5:F5) -> 0
A6: OH | B6: =IF(B4>25000, 12750, (B4*0.51)) -> 0 | C6: =IF(C4+B4>25000,12750-B6,ROUND(C4*0.51,0)) -> 0 | D6: =IF(D4+C4+B4>25000,12750-(B6+C6),(D4*0.51)) -> 0 | E6: =IF(E4+D4+C4+B4>25000,12750-(B6+C6+D6),(E4*0.51)) -> 0 | F6: =IF(F4+E4+D4+C4+B4>25000,12750-(B6+C6+D6+E6),(F4*0.51)) -> 0 | G6: 0
A7: =BudgetWorksheet!$A$84 -> Subaward 2 | B7: =BudgetWorksheet!$D$84 -> 0 | C7: =BudgetWorksheet!$F$84 -> 0 | D7: =BudgetWorksheet!$H$84 -> 0 | E7: =BudgetWorksheet!$J$84 -> 0 | F7: =BudgetWorksheet!$L$84 -> 0 | G7: 0
A8: Subject to OH | B8: =IF(B7>25000, 25000, B7) -> 0 | C8: =IF(B7+C7>25000, 25000-B8, C7) -> 0 | D8: =IF(B7+C7+D7>25000, 25000-(B8+C8), D7) -> 0 | E8: =IF(B7+C7+D7+E7>25000, 25000-(B8+C8+D8), E7) -> 0 | F8: =IF(B7+C7+D7+E7+F7>25000, 25000-(B8+C8+D8+E8), F7) -> 0 | G8: =SUM(B8:F8) -> 0
A9: OH | B9: =IF(B7>25000, 12750, (B7*0.51)) -> 0 | C9: =IF(C7+B7>25000,12750-B9,ROUND(C7*0.51,0)) -> 0 | D9: =IF(D7+C7+B7>25000,12750-(B9+C9),(D7*0.51)) -> 0 | E9: =IF(E7+D7+C7+B7>25000,12750-(B9+C9+D9),(E7*0.51)) -> 0 | F9: =IF(F7+E7+D7+C7+B7>25000,12750-(B9+C9+D9+E9),(F7*0.51)) -> 0 | G9: 0
A10: =BudgetWorksheet!$A$85 -> Subaward 3 | B10: =BudgetWorksheet!$D$85 -> 0 | C10: =BudgetWorksheet!$F$85 -> 0 | D10: =BudgetWorksheet!$H$85 -> 0 | E10: =BudgetWorksheet!$J$85 -> 0 | F10: =BudgetWorksheet!$L$85 -> 0 | G10: 0
A11: Subject to OH | B11: =IF(B10>25000, 25000, B10) -> 0 | C11: =IF(B10+C10>25000, 25000-B11, C10) -> 0 | D11: =IF(B10+C10+D10>25000, 25000-(B11+C11), D10) -> 0 | E11: =IF(B10+C10+D10+E10>25000, 25000-(B11+C11+D11), E10) -> 0 | F11: =IF(B10+C10+D10+E10+F10>25000, 25000-(B11+C11+D11+E11), F10) -> 0 | G11: =SUM(B11:F11) -> 0
A12: OH | B12: =IF(B10>25000, 12750, (B10*0.51)) -> 0 | C12: =IF(C10+B10>25000,12750-B12,ROUND(C10*0.51,0)) -> 0 | D12: =IF(D10+C10+B10>25000,12750-(B12+C12),(D10*0.51)) -> 0 | E12: =IF(E10+D10+C10+B10>25000,12750-(B12+C12+D12),(E10*0.51)) -> 0 | F12: =IF(F10+E10+D10+C10+B10>25000,12750-(B12+C12+D12+E12),(F10*0.51)) -> 0 | G12: 0
A13: =BudgetWorksheet!$A$86 -> Subaward 4 | B13: =BudgetWorksheet!$D$86 -> 0 | C13: =BudgetWorksheet!$F$86 -> 0 | D13: =BudgetWorksheet!$H$86 -> 0 | E13: =BudgetWorksheet!$J$86 -> 0 | F13: =BudgetWorksheet!$L$86 -> 0 | G13: =SUM(B13:F13) -> 0
A14: Subject to OH | B14: =IF(B13>25000, 25000, B13) -> 0 | C14: =IF(B13+C13>25000, 25000-B14, C13) -> 0 | D14: =IF(B13+C13+D13>25000, 25000-(B14+C14), D13) -> 0 | E14: =IF(B13+C13+D13+E13>25000, 25000-(B14+C14+D14), E13) -> 0 | F14: =IF(B13+C13+D13+E13+F13>25000, 25000-(B14+C14+D14+E14), F13) -> 0 | G14: =SUM(B14:F14) -> 0
A15: OH | B15: =IF(B13>25000, 12750, (B13*0.51)) -> 0 | C15: =IF(C13+B13>25000,12750-B15,ROUND(C13*0.51,0)) -> 0 | D15: =IF(D13+C13+B13>25000,12750-(B15+C15),(D13*0.51)) -> 0 | E15: =IF(E13+D13+C13+B13>25000,12750-(B15+C15+D15),(E13*0.51)) -> 0 | F15: =IF(F13+E13+D13+C13+B13>25000,12750-(B15+C15+D15+E15),(F13*0.51)) -> 0 | G15: 0
A16: =BudgetWorksheet!$A$87 -> Subaward 5 | B16: =BudgetWorksheet!$D$87 -> 0 | C16: =BudgetWorksheet!$F$87 -> 0 | D16: =BudgetWorksheet!$H$87 -> 0 | E16: =BudgetWorksheet!$J$87 -> 0 | F16: =BudgetWorksheet!$L$87 -> 0 | G16: 0
A17: Subject to OH | B17: =IF(B16>25000, 25000, B16) -> 0 | C17: =IF(B16+C16>25000, 25000-B17, C16) -> 0 | D17: =IF(B16+C16+D16>25000, 25000-(B17+C17), D16) -> 0 | E17: =IF(B16+C16+D16+E16>25000, 25000-(B17+C17+D17), E16) -> 0 | F17: =IF(B16+C16+D16+E16+F16>25000, 25000-(B17+C17+D17+E17), F16) -> 0 | G17: =SUM(B17:F17) -> 0
A18: OH | B18: =IF(B16>25000, 12750, (B16*0.51)) -> 0 | C18: =IF(C16+B16>25000,12750-B18,ROUND(C16*0.51,0)) -> 0 | D18: =IF(D16+C16+B16>25000,12750-(B18+C18),(D16*0.51)) -> 0 | E18: =IF(E16+D16+C16+B16>25000,12750-(B18+C18+D18),(E16*0.51)) -> 0 | F18: =IF(F16+E16+D16+C16+B16>25000,12750-(B18+C18+D18+E18),(F16*0.51)) -> 0 | G18: 0
A19: =BudgetWorksheet!$A$88 -> Subaward 6 | B19: =BudgetWorksheet!$D$88 -> 0 | C19: =BudgetWorksheet!$F$88 -> 0 | D19: =BudgetWorksheet!$H$88 -> 0 | E19: =BudgetWorksheet!$J$88 -> 0 | F19: =BudgetWorksheet!$L$88 -> 0 | G19: 0
A20: Subject to OH | B20: =IF(B19>25000, 25000, B19) -> 0 | C20: =IF(B19+C19>25000, 25000-B20, C19) -> 0 | D20: =IF(B19+C19+D19>25000, 25000-(B20+C20), D19) -> 0 | E20: =IF(B19+C19+D19+E19>25000, 25000-(B20+C20+D20), E19) -> 0 | F20: =IF(B19+C19+D19+E19+F19>25000, 25000-(B20+C20+D20+E20), F19) -> 0 | G20: =SUM(B20:F20) -> 0
A21: OH | B21: =IF(B19>25000, 12750, (B19*0.51)) -> 0 | C21: =IF(C19+B19>25000,12750-B21,ROUND(C19*0.51,0)) -> 0 | D21: =IF(D19+C19+B19>25000,12750-(B21+C21),(D19*0.51)) -> 0 | E21: =IF(E19+D19+C19+B19>25000,12750-(B21+C21+D21),(E19*0.51)) -> 0 | F21: =IF(F19+E19+D19+C19+B19>25000,12750-(B21+C21+D21+E21),(F19*0.51)) -> 0 | G21: 0
A22: =BudgetWorksheet!$A$89 -> Subaward 7 | B22: =BudgetWorksheet!$D$89 -> 0 | C22: =BudgetWorksheet!$F$89 -> 0 | D22: =BudgetWorksheet!$H$89 -> 0 | E22: =BudgetWorksheet!$J$89 -> 0 | F22: =BudgetWorksheet!$L$89 -> 0 | G22: 0
A23: Subject to OH | B23: =IF(B22>25000, 25000, B22) -> 0 | C23: =IF(B22+C22>25000, 25000-B23, C22) -> 0 | D23: =IF(B22+C22+D22>25000, 25000-(B23+C23), D22) -> 0 | E23: =IF(B22+C22+D22+E22>25000, 25000-(B23+C23+D23), E22) -> 0 | F23: =IF(B22+C22+D22+E22+F22>25000, 25000-(B23+C23+D23+E23), F22) -> 0 | G23: =SUM(B23:F23) -> 0
A24: OH | B24: =IF(B22>25000, 12750, (B22*0.51)) -> 0 | C24: =IF(C22+B22>25000,12750-B24,ROUND(C22*0.51,0)) -> 0 | D24: =IF(D22+C22+B22>25000,12750-(B24+C24),(D22*0.51)) -> 0 | E24: =IF(E22+D22+C22+B22>25000,12750-(B24+C24+D24),(E22*0.51)) -> 0 | F24: =IF(F22+E22+D22+C22+B22>25000,12750-(B24+C24+D24+E24),(F22*0.51)) -> 0 | G24: 0
A25: =BudgetWorksheet!$A$90 -> Subaward 8 | B25: =BudgetWorksheet!$D$90 -> 0 | C25: =BudgetWorksheet!$F$90 -> 0 | D25: =BudgetWorksheet!$H$90 -> 0 | E25: =BudgetWorksheet!$J$90 -> 0 | F25: =BudgetWorksheet!$L$90 -> 0 | G25: 0
A26: Subject to OH | B26: =IF(B25>25000, 25000, B25) -> 0 | C26: =IF(B25+C25>25000, 25000-B26, C25) -> 0 | D26: =IF(B25+C25+D25>25000, 25000-(B26+C26), D25) -> 0 | E26: =IF(B25+C25+D25+E25>25000, 25000-(B26+C26+D26), E25) -> 0 | F26: =IF(B25+C25+D25+E25+F25>25000, 25000-(B26+C26+D26+E26), F25) -> 0 | G26: =SUM(B26:F26) -> 0
A27: OH | B27: =IF(B25>25000, 12750, (B25*0.51)) -> 0 | C27: =IF(C25+B25>25000,12750-B27,ROUND(C25*0.51,0)) -> 0 | D27: =IF(D25+C25+B25>25000,12750-(B27+C27),(D25*0.51)) -> 0 | E27: =IF(E25+D25+C25+B25>25000,12750-(B27+C27+D27),(E25*0.51)) -> 0 | F27: =IF(F25+E25+D25+C25+B25>25000,12750-(B27+C27+D27+E27),(F25*0.51)) -> 0 | G27: 0
A28: =BudgetWorksheet!$A$91 -> Subaward 9 | B28: =BudgetWorksheet!$D$91 -> 0 | C28: =BudgetWorksheet!$F$91 -> 0 | D28: =BudgetWorksheet!$H$91 -> 0 | E28: =BudgetWorksheet!$J$91 -> 0 | F28: =BudgetWorksheet!$L$91 -> 0 | G28: 0
A29: Subject to OH | B29: =IF(B28>25000, 25000, B28) -> 0 | C29: =IF(B28+C28>25000, 25000-B29, C28) -> 0 | D29: =IF(B28+C28+D28>25000, 25000-(B29+C29), D28) -> 0 | E29: =IF(B28+C28+D28+E28>25000, 25000-(B29+C29+D29), E28) -> 0 | F29: =IF(B28+C28+D28+E28+F28>25000, 25000-(B29+C29+D29+E29), F28) -> 0 | G29: =SUM(B29:F29) -> 0
A30: OH | B30: =IF(B28>25000, 12750, (B28*0.51)) -> 0 | C30: =IF(C28+B28>25000,12750-B30,ROUND(C28*0.51,0)) -> 0 | D30: =IF(D28+C28+B28>25000,12750-(B30+C30),(D28*0.51)) -> 0 | E30: =IF(E28+D28+C28+B28>25000,12750-(B30+C30+D30),(E28*0.51)) -> 0 | F30: =IF(F28+E28+D28+C28+B28>25000,12750-(B30+C30+D30+E30),(F28*0.51)) -> 0 | G30: 0
A31: =BudgetWorksheet!$A$92 -> Subaward 10 | B31: =BudgetWorksheet!$D$92 -> 0 | C31: =BudgetWorksheet!$F$92 -> 0 | D31: =BudgetWorksheet!$H$92 -> 0 | E31: =BudgetWorksheet!$J$92 -> 0 | F31: =BudgetWorksheet!$L$92 -> 0 | G31: 0
A32: Subject to OH | B32: =IF(B31>25000, 25000, B31) -> 0 | C32: =IF(B31+C31>25000, 25000-B32, C31) -> 0 | D32: =IF(B31+C31+D31>25000, 25000-(B32+C32), D31) -> 0 | E32: =IF(B31+C31+D31+E31>25000, 25000-(B32+C32+D32), E31) -> 0 | F32: =IF(B31+C31+D31+E31+F31>25000, 25000-(B32+C32+D32+E32), F31) -> 0 | G32: =SUM(B32:F32) -> 0
A33: OH | B33: =IF(B31>25000, 12750, (B31*0.51)) -> 0 | C33: =IF(C31+B31>25000,12750-B33,ROUND(C31*0.51,0)) -> 0 | D33: =IF(D31+C31+B31>25000,12750-(B33+C33),(D31*0.51)) -> 0 | E33: =IF(E31+D31+C31+B31>25000,12750-(B33+C33+D33),(E31*0.51)) -> 0 | F33: =IF(F31+E31+D31+C31+B31>25000,12750-(B33+C33+D33+E33),(F31*0.51)) -> 0 | G33: 0
A34: Total Subawards | B34: =SUM(B31,B28,B22,B19,B16,B13,B10,B7,B4) -> 0 | C34: =SUM(C31,C28,C22,C19,C16,C13,C10,C7,C4) -> 0 | D34: 0 | E34: 0 | F34: 0 | G34: =SUM(B34:F34) -> 0
A35: Total Subject to OH | B35: =SUM(B32,B29,B26,B23,B20,B17,B14,B11,B8,B5) -> 0 | C35: =SUM(C32,C29,C26,C23,C20,C17,C14,C11,C8,C5) -> 0 | D35: 0 | E35: 0 | F35: 0 | G35: =SUM(B35:F35) -> 0
A36: Total Overhead | B36: =SUM(B33,B30,B27,B24,B21,B18,B15,B12,B9,B6) -> 0 | C36: =SUM(C33,C30,C27,C24,C21,C18,C15,C12,C9,C6) -> 0 | D36: 0 | E36: 0 | F36: 0 | G36: 0
A38: pw: edit

Sheet Ship rates
A1: none | B1: 0
A2: Western Flyer w/ Doc Ricketts | B2: 31500
A3: Rachel Carson 10/12hr | B3: 12500
A4: Rachel Carson 24hr | B4: 13700
A5: ROV Ventana | B5: 5500
A6: AUV - single vehicle | B6: 6500
A7: AUV - multiple vehicles | B7: 9300
A8: Mini ROV | B8: 3300
A9: Test Tank | B9: 450
A10: 2017
